[Event "Norway Chess 2025"]
[Site "Stavanger, Norway"]
[Date "2025.06.06"]
[Round "10"]
[White "Erigaisi Arjun"]
[Black "Carlsen, Magnus"]
[Result "1/2-1/2"]
[ECO "D35"]
[WhiteElo "2782"]
[BlackElo "2837"]
[Annotator "Rafael Leitao"]
[PlyCount "111"]
[EventDate "2025.??.??"]
[TimeControl "40/7200:0"]

1. d4 d5 2. c4 e6 3. Nc3 Nf6 {Knowing a draw might suffice, Carlsen chooses one of the most solid and reliable defenses against the Queen's Pawn.} 4. cxd5 {The Exchange Variation was Kasparov's favorite line when facing the Queen's Gambit.} exd5 5. Bg5 Be7 6. e3 O-O 7. Bd3 h6 8. Bh4 c6 9. Nge2 Nbd7 (9... Ne8 {is another popular plan these days.}) 10. O-O a5 $5 {The modern way of playing the Queen's Gambit Declined. Advancing on the queenside for Black wasn't common some 50 years ago, but chess understanding has evolved.} (10... Re8 {is more common, and Black can use the same plan after} 11. Qc2 a5) 11. f3 (11. a4 {I've seen strong players trying this with White in similar positions, but the inclusion of a4-a5 no doubt improves Black's position.}) (11. Qc2 {is more possible when Black can play} Re8 {and White may think of something different from the classical plan with f3-e4, although I'm not sure that most players try 12.f3 anyway.}) ({RR} 11. Rc1 Re8 12. f3 b5 13. Kh1 Ba6 14. Bf2 Qb8 15. Ng3 b4 16. Nce2 Bxd3 17. Qxd3 c5 18. dxc5 Nxc5 19. Qb1 Bf8 20. Rfd1 Qb5 21. Nf4 Ne6 22. Nf5 Rac8 23. h3 Nxf4 24. exf4 Nh5 25. Nd4 Qd7 {Duda,J (2725)-Carlsen,M (2839) Zagreb CRO 2025 ½-½ (65)}) 11... b5 $1 {This the whole point of Black's opening system; he reacts with b5-b4 against the plan of f3-e4.} 12. Qc2 Re8 13. e4 $146 {Arjun plays the opening in the most direct way possible. He could try to play a move like 13.Bf2 and maybe Kh1 next, but he decides to strike immediately. Given the quality of the move and the time spent, it's unlikely that he had this prepared beforehand.} ({RR} 13. Kh1 Ba6 14. Rad1 Qb8 ({RR} 14... Qb6 15. Bf2 Rad8 16. e4 dxe4 17. fxe4 Ng4 18. Bg1 Qb8 19. h3 Ngf6 20. e5 Nd5 21. Bh7+ Kh8 22. Rxf7 Nb4 23. Qg6 Bf8 24. Rdf1 Nd5 25. Nxd5 cxd5 26. Nf4 b4 27. Qxa6 Kxh7 28. Qg6+ Kh8 29. Qh5) 15. e4 b4 16. Nb1 Bxd3 17. Qxd3 dxe4 18. fxe4 Nxe4 19. Qxe4 Bxh4 20. Qxc6 Ra7 21. Nf4 Nf6 22. Qf3 Rae7 23. Rd3 Re1 24. Nd2 Bg5 25. g3 Qc8 26. Rxe1 Rxe1+ 27. Kg2 Bxf4 {Sele,T (1699)-Silva,M (2005) Budapest HUN 2024 0-1 (42)}) ({RR} 13. Bf2 Bb7 14. h3 Rc8 15. Bf5 g6 16. Bxg6 fxg6 17. Qxg6+ Kh8 18. e4 Nh7 19. e5 b4 20. Nd1 Ba6 21. Re1 Rg8 22. Qxh6 Bg5 23. Qd6 Qe8 24. e6 Qg6 25. Bg3 Ndf6 26. Nf2 Be3 27. Qe5 Bxe2) ({RR} 13. Bf2 Ba6 14. Rad1 Qb6 15. Rfe1 b4 16. Na4 Bxd3 17. Qxd3 Qb5 18. Qc2 Rac8 19. Nf4 c5 20. dxc5 Nxc5 21. Nxc5 Rxc5 22. Qd2 Rec8 23. Qd4 b3 24. axb3 Qxb3 25. Qe5 Bf8 26. Nd3 Rc2 27. Qf5 R8c6 {Anas Khwaira (2173)-Aradhya,G (2383) Al Ain UAE 2025 0-1 (65)}) 13... b4 14. Na4 dxe4 15. fxe4 Nxe4 $1 {Black has a big alternative in 15...c5, but the move played in the game is objectively better, although it will soon be followed by a mistake.} (15... c5 {is the typical break. Big complications start.} 16. e5 $1 (16. dxc5 $2 {leads to problems for White after} Ng4 $1) 16... Nd5 {Now White has several ideas after 16.Bxe7, 16.Bg3, or even 16.Bc4. With the engine on, it seems that Black's position can be held, although it seems a little shaky and dangerous in a practical game.}) 16. Bxe7 (16. Bxe4 $2 Bxh4 17. Bxc6 Ba6 {is horrible for White.}) 16... Qxe7 17. Qxc6 Nef6 $2 {The wrong way to sacrifice.} (17... Nd2 $1 {is a theoretical novelty and the best move when Black has excellent counterplay after} 18. Qxa8 Qe3+ 19. Rf2 Nf6 $1 {With the bishop attacked and the threat of Ng4, Black has the initiative. White has played very accurately in order to hold the balance.} (19... Qxd3 {is worse.} 20. Rc1) 20. Qb8 $1 Qxd3 21. Nc5 Qc4 22. b3 Qd5 {with excellent compensation for the exchange.}) 18. Qxa8 Qe3+ 19. Kh1 Qxd3 20. Nf4 Qxd4 21. Rad1 (21. Rac1 {is also tempting. Black has to find} Kh7 $1 {with the idea} (21... Ng4 $2 {loses a piece after} 22. h3 Nf2+ 23. Rxf2 Qxf2 24. Nd3 $1 {followed by capturing the bishop on c8.}) (21... Ne4 {is refuted by} 22. Ne2 $1) 22. Rxc8 $6 (22. Qxa5 {is better.}) 22... Ng4 $1 {when suddenly Black has dangerous threats.} (22... Qxf4 $2 23. Qa6 Qxf1+ 24. Qxf1 Rxc8 {is similar to the game.})) 21... Qe5 $2 (21... Qe3 $1 {offers better chances of defending.} 22. Rc1 Ne4 {forces White to play} 23. Nh3 $1 {and now either 23...Nd6 or 23...Qe2, when White is better, but the position remains very complicated.}) 22. Rc1 $1 Nf8 {Carlsen finds a clever way to defend.} 23. Rxc8 $6 {tempting, but there's a better move.} (23. Nc5 $1 {seems to better, followed by the capture of the a-pawn. Although White is technically winning, there are still practical chances for Black to create something on the kingside.}) 23... Qxf4 $1 {The point of Black's previous move, exploiting the back-rank weakness.} 24. Qa6 {Absolutely forced.} Qxf1+ $1 {Carlsen decides to give up his queen, a difficult but entirely correct decision. He has more chances of surviving here than an exchange down after} (24... Qe5 25. Rxe8 Nxe8 26. Qc6 Nf6 27. Qc5 Qe2 28. Qf2 Qe5 29. Nc5 {when he lacks counterplay and White will gradually attack the queenside pawns.}) 25. Qxf1 Rxc8 26. h3 {Despite the material advantage, it's not easy for White to convert the advantage. The knight is out of play, and Black's rook and knights can become very tricky if allowed near the white king.} Rd8 27. Qa6 (27. Nb6 {is a good alternative, preparing Nc4.}) 27... Rd5 28. Nb6 Rc5 29. Nc4 Ne6 $2 {Not the best way to coordinate the pieces.} (29... Ng6 $1 {is stronger. The point is that after the dubious capture of the a5-pawn, Black is ready to start an attack.} 30. Nxa5 (30. Ne3 {is more prudent.}) 30... Rc1+ 31. Kh2 Rc2 {with the idea of playing Nh4 next.}) 30. Nxa5 g5 $5 {An interesting plan. Black wants to play g5-g4 and destroy the king's shelter.} 31. Nc4 {White has many winning moves. His task for now is to improve the knight's position.} (31. Nc6 g4 32. Nd4 $1 {An important move that decides the game.} Ng5 {The last trick.} (32... Nxd4 33. Qxf6) 33. Nf5 $1 (33. Qxf6 $4 {ends in sadness after} Rc1+ 34. Kh2 g3+ $1 35. Kxg3 Ne4+) 33... Rxf5 34. Qc8+ {picking up the rook.}) (31. Nb7 {is also possible:} Rc1+ 32. Kh2 g4 33. Nd6 $18 {White is ready to start an attack on f7.}) (31. Nb3 {is also winning but less incisive.}) 31... g4 32. b3 $2 ({The prophylactic} 32. Kh2 {is better, securing the h-pawn.}) 32... gxh3 33. gxh3 Rh5 34. Kh2 $2 {Another mistake and now Black has adequate counterplay.} (34. Kg2 $1 {is the right move, but to be honest, I think Black already has considerable practical chances of saving the game after} Kg7) 34... Kg7 (34... Ng5 $5 {shows again that the knights are tricky pieces (a theme that showed up in other games of this tournament as well). The idea is} 35. Qxf6 Rxh3+ 36. Kg2 Rg3+ $3 {forcing a draw, either by perpetual check or in the endgame after} 37. Kxg3 Ne4+) 35. Qb7 Ng5 36. Nd6 ({After} 36. Qxb4 Rxh3+ 37. Kg2 {Black should play} Rf3 $1 {cutting off the king and preparing Nfe4.} 38. Nd2 Rd3 {The rook and knights are very active.}) 36... Rxh3+ 37. Kg2 Rd3 38. Nf5+ Kg6 39. Ne7+ (39. Ng3 {is better, bringing the knight closer to the king. The endgame has become very tactical but objectively equal.}) 39... Kh5 $1 {The king goes forward. Now the attacks consist of rook, two knights, and the king.} 40. Qxb4 $2 {Losing by force.} (40. Kf2 {is necessary.}) 40... Nfe4 {The white king is trapped.} 41. Kf1 Rd2 42. Qb5 Rd1+ 43. Kg2 Rd2+ 44. Kf1 Kg4 $6 {Complicating the win.} (44... f5 $1 {is a pretty move that decides the game instantly.} 45. Nxf5 (45. Qxf5 Ng3+ {takes the queen.}) (45. Qe8+ Kg4 {The king is sheltered by the pawn on f5.}) 45... Rf2+ 46. Ke1 (46. Kg1 Nf3+ 47. Kh1 Rh2#) 46... Nf3+ {The point of the move 44...f5. The knight on f5 unpins its colleague on g5.} 47. Kd1 Nc3+ 48. Kc1 Nxb5) 45. Qf5+ Kg3 46. Qe5+ Kf3 47. Qf5+ Kg3 48. Qe5+ Kf3 49. Qf5+ Ke3 $1 {A brave decision $1 Though Black is winning, due to the shortage of time I think the general feeling of the spectators was that anything could happen.} 50. Nd5+ Kd4 51. Ke1 Rxa2 $6 (51... Rh2 $1 {is recommended by the machine as the right winning move, but who could find such subtleties with seconds on the clock $2 Not even Carlsen.}) 52. Qd7 $1 Ra1+ (52... Nc5 {offers good winning chances, but it's not easy after} 53. Qd8) 53. Ke2 Ra2+ {Carlsen makes the professional decision of forcing a draw and clinching the title of this spectacular tournament.} 54. Ke1 Ra1+ 55. Ke2 Ra2+ 56. Ke1 1/2-1/2